Cogmind - Beta 16.1 @@@ ROGUE MODE // 2026.04.17 @ 10:22:52 Player: LegionOfLizards Result: Destroyed by G-34 Mercenary with Small Laser Performance ------------- Evolutions (0) 0 Regions Visited (1) 200 Robots Destroyed (18) 90 Value Destroyed (346) 346 Prototype IDs (0) 0 Alien Tech Used (0) 0 Bonus (0) 0 TOTAL SCORE: 636 Bonus ------- None Cogmind --------- Core Integrity 0/250 Matter 300/300 Energy 250/250 System Corruption 0% Temperature Cool (6) Movement Walking (120) Location -10/Materials Parts ------- > --- POWER (1) -------- Ion Engine > --- PROPULSION (2) --- Aluminum Leg > --- UTILITY (2) ------ Small Storage Unit Targeting Computer > --- WEAPON (2) ------- (None) > --- INVENTORY (8) ---- Light Ion Engine Light Nuclear Core Aluminum Leg Aluminum Leg Small Battery (100) Power Shielding Power Shielding Power Shielding Peak State ------------ > --- POWER ------------ Ion Engine > --- PROPULSION ------- Aluminum Leg Aluminum Leg > --- UTILITY ---------- Small Storage Unit Small Storage Unit > --- WEAPON ----------- Particle Gun Light Assault Rifle > --- INVENTORY -------- Light Ion Engine Light Nuclear Core Aluminum Leg Hover Unit Medium Laser [Rating: 8] Favorites ----------- Power Ion Engine Engine Ion Engine Propulsion Aluminum Leg Leg Aluminum Leg Utility Small Storage Unit Storage Small Storage Unit Processor Targeting Computer Weapon Light Assault Rifle Energy Gun Particle Gun Ballistic Gun Light Assault Rifle Build | -11 -10 ------- Run | Yrd Mat Slots Evolved . | . . Power . | . . Propulsion . | . . Utility . | . . Weapon . | . . Parts Attached 14 | 2 12 Power 3 | . 3 Engine 3 | . 3 Core . | . . Reactor . | . . Propulsion 5 | 1 4 Treads . | . . Leg 5 | 1 4 Wheel . | . . Hover . | . . Flight . | . . Utility 3 | 1 2 Device . | . . Storage 2 | 1 1 Processor 1 | . 1 Hackware . | . . Protection . | . . Artifact . | . . Weapon 3 | . 3 Energy Gun 2 | . 2 Energy Cannon . | . . Ballistic Gun 1 | . 1 Ballistic Cannon . | . . Launcher . | . . Special Weapon . | . . Impact Weapon . | . . Slashing Weapon . | . . Piercing Weapon . | . . Special Melee Weapon . | . . Unidentified Prototypes . | . . Parts Lost 3 | . 3 Power . | . . Propulsion 1 | . 1 Utility . | . . Weapon 2 | . 2 Highest Loss Streak 2 | . 2 To Critical Strikes . | . . Average Backups 4 | 2 4 Power 1 | 1 1 Propulsion 1 | . 1 Utility 1 | . 1 Weapon . | 1 . Tool/Special . | . . Unused Backups 8 | . 8 Power 2 | . 2 Propulsion 2 | . 2 Utility 4 | . 4 Weapon . | . . Tool/Special . | . . Average Slot Usage (%) 82 | . 82 Engine 12 | . 12 Leg 25 | . 25 Storage 15 | . 15 Processor 4 | . 4 Energy Gun 11 | . 11 Ballistic Gun 12 | . 12 Peak Build Rating 8 | 2 8 Average Rating 6 | 1 6 On Entrance 1 | . 2 Avg Prop Armor Cover (%) . | . . Naked Turns . | . . Heaviest Build 19 | 5 19 Greatest Support 20 | 10 20 Greatest Overweight (x) 4 | . 4 Average Overweight (x) . | . . Largest Inventory Capacity 8 | 8 8 Average Capacity 7 | 6 8 Most Carried 8 | 5 8 Average Carried 4 | 3 4 Final Capacity 8 | 8 8 Final Carried 8 | 5 8 Class Distribution -------------------- 100% | Mutant Dominant Class ---------------- Mutant | -10/Materials Resources | -11 -10 ----------- Run | Yrd Mat Matter Collected 448 | 220 228 Remotely . | . . Salvage Created 594 | . 594 Parts 31 | . 31 Haulers Intercepted . | . . Recyclers Shooed 2 | . 2 Parts Field Recycled . | . . Retrieved Matter . | . . Parts Self-Destructed . | . . Prevented . | . . Parts Restored . | . . Kills | -11 -10 ------- Run | Yrd Mat Combat Hostiles Destroyed 13 | . 13 Guns 13 | . 13 Classes Destroyed 5 | . 5 Worker 1 | . 1 Recycler 3 | . 3 Operator 1 | . 1 Swarmer 6 | . 6 Grunt 7 | . 7 Best Kill Streak 4 | . 4 Combat Bots Only 3 | . 3 Max Kills in Single Turn 1 | . 1 Gunslinging . | . . Exploded . | . . Melee . | . . Uniques/NPCs Destroyed . | . . Combat | -11 -10 -------- Run | Yrd Mat Hostile Shots Fired 118 | . 118 Missed 29 | . 29 Hits 89 | . 89 Projectile 89 | . 89 Critical Strikes 1 | . 1 Damage Taken 969 | . 969 Core 252 | . 252 Absorbed by Shields . | . . Core Remaining (%) 100 | 100 . Volleys Fired 79 | . 79 Largest 2 | . 2 Hottest 115 | . 115 Shots Fired 140 | . 140 Gun 140 | . 140 Cannon . | . . Launcher . | . . Special . | . . Kinetic 77 | . 77 Thermal 63 | . 63 Explosive . | . . Electromagnetic . | . . Robot Hit Streak 9 | . 9 Robot Miss Streak 4 | . 4 Penetration Max . | . . Secondary Targets . | . . Shots Hit Robots 87 | . 87 Core Hits 34 | . 34 Critical Kills . | . . Critical Parts Destroyed . | . . Critical Strikes 1 | . 1 Burn 1 | . 1 Melee Attacks . | . . Impact . | . . Slashing . | . . Piercing . | . . Sneak Attacks . | . . Combat Hostiles . | . . Follow-up Attacks . | . . Damage Inflicted 1032 | . 1032 Guns 991 | . 991 Cannons . | . . Explosions . | . . Melee . | . . Ramming 41 | . 41 Kinetic 372 | . 372 Thermal 619 | . 619 Explosive . | . . Electromagnetic . | . . Impact . | . . Slashing . | . . Piercing . | . . Highest Corruption . | . . Average Corruption . | . . Corruption Purged . | . . Corruption Blocked . | . . Overload Shots . | . . Overflow Damage . | . . Projectiles . | . . Explosions . | . . Melee . | . . Knockbacks . | . . Impact . | . . Kinetic . | . . Secondary . | . . Self-Inflicted Damage . | . . Shots . | . . Rammed . | . . Targets Rammed 22 | . 22 Kicked 22 | . 22 Crushed . | . . Highest Temperature 264 | . 264 Average Temperature 95 | . 95 Received Heat Transfer 426 | . 426 Effects 4 | . 4 Energy Bleed 3 | . 3 Interference 1 | . 1 Siege Activations . | . . Martial Activations . | . . Shielding Activations . | . . Robots Disrupted . | . . Combat Hostiles . | . . Robots Corrupted . | . . Combat Hostiles . | . . Parts Fried . | . . Impact Corruptions . | . . Robots Melted . | . . Combat Hostiles . | . . Parts Melted 6 | . 6 Heat Transferred 1702 | . 1702 Parts Sabotaged . | . . Parts Stolen . | . . Parts Stripped . | . . Power Chain Reactions . | . . Alert | -11 -10 ------- Run | Yrd Mat Maximum Alert Level . | . . Low Security (%) 100 | 100 100 Level 1 . | . . Level 2 . | . . Level 3 . | . . Level 4 . | . . Level 5 . | . . High Security . | . . Max Security . | . . Peak Influence 192 | . 192 Initial . | . . Average 94 | . 100 Influence Increases 428 | . 428 Destroy 0b10 Robot/C 260 | . 260 Destroy 0b10 Robot/NC 25 | . 25 Destroy Leader 50 | . 50 Successful Hack 18 | . 18 Lose Combat Pursuer 75 | . 75 Influence Decreases 307 | . 307 Time Decay 277 | . 277 Lost Part 30 | . 30 Squads Dispatched 2 | . 2 Investigation 1 | . 1 Extermination . | . . Reinforcement 1 | . 1 Assault . | . . Garrison . | . . Intercept . | . . Searches Triggered . | . . Construction Impeded . | . . Haulers Reinforced . | . . Active Scanning Responses . | . . Cargo Convoy Interrupts . | . . Stealth | -11 -10 --------- Run | Yrd Mat Distress Signals 1 | . 1 Communications Jammed . | . . Distress Signals . | . . Times Spotted 25 | . 25 Peak Tracking Total 5 | . 5 Tactical Retreats 4 | . 4 Traps | -11 -10 ------- Run | Yrd Mat Traps Triggered 2 | . 2 Indirectly . | . . Trap Hack Attempts . | . . Triggered . | . . Disarmed . | . . Reprogrammed . | . . Reused . | . . Traps Extracted . | . . Installed . | . . Triggered . | . . Machines | -11 -10 ---------- Run | Yrd Mat Machines Disabled . | . . Max in Single Turn . | . . Machines Repaired . | . . Machines Dismantled . | . . Machines Sabotaged . | . . Overloaded Fab Kills . | . . Hacking | -11 -10 --------- Run | Yrd Mat Machines Accessed 4 | . 4 Terminals 3 | . 3 Fabricators . | . . Repair Stations . | . . Recycling Units 1 | . 1 Scanalyzers . | . . Garrison Access . | . . Total Hacks 14 | . 14 Successful 13 | . 13 Failed 1 | . 1 Catastrophic . | . . Database Lockouts . | . . Manual 6 | . 6 Terminals 9 | . 9 Fabricators . | . . Repair Stations . | . . Recycling Units 5 | . 5 Scanalyzers . | . . Garrison Access . | . . Terminal Hacks 6 | . 6 Alert Level 1 | . 1 Locate Traps 2 | . 2 Dispatch Records 1 | . 1 Zone Layout 2 | . 2 Fabricator Hacks . | . . Repair Station Hacks . | . . Recycling Unit Hacks 5 | . 5 Recycle Component 2 | . 2 Process 1 | . 1 Report Inventory 1 | . 1 Retrieve Matter 1 | . 1 Scanalyzer . | . . Garrison Access Hacks . | . . Unauthorized Hacks 2 | . 2 Terminals 2 | . 2 Botnet 2 | . 2 Fabricators . | . . Repair Stations . | . . Recycling Units . | . . Scanalyzers . | . . Garrison Access . | . . Data Cores Recovered . | . . Used . | . . Hacking Detections 3 | . 3 Full Trace Events 2 | . 2 Feedback Events . | . . Feedback Blocked . | . . Robot Schematics Acquired . | . . Robots Built . | . . Authchips . | . . Time . | . . Total Robot Build Rating . | . . Part Schematics Acquired . | . . Parts Built . | . . Authchips . | . . Time . | . . Total Part Build Rating . | . . Part Studies Acquired . | . . Parts Repaired . | . . Time . | . . Parts Recycled 2 | . 2 Recycled Matter 89 | . 89 Retrieved Matter 89 | . 89 Retrieved Components . | . . Parts Scanalyzed . | . . Part Schematics Acquired . | . . Parts Damaged . | . . Bothacking | -11 -10 ------------ Run | Yrd Mat Used RIF Installer . | . . Robots Hacked . | . . Non-combat . | . . Combat . | . . Robot Hacks Applied . | . . Relay Couplers Released . | . . Fabnet Peak Effective % . | . . Robots Rewired . | . . Allies Hacked . | . . Hacks Repelled . | . . Allies | -11 -10 -------- Run | Yrd Mat Total Allies . | . . Largest Group . | . . Highest-Rated Group . | . . Highest-Rated Ally . | . . Total Orders . | . . Ally Attacks . | . . Total Damage . | . . Kills . | . . Allies Corrupted . | . . Allies Melted . | . . Intel | -11 -10 ------- Run | Yrd Mat Active Infowar (turns) . | . . Robot Analysis Total . | . . Derelict Logs Recovered . | . . Drone Launches . | . . Drone Recoveries . | . . Exploration | -11 -10 ------------- Run | Yrd Mat Turns Passed 824 | 51 773 Spaces Moved 353 | 37 316 Core 12 | 3 9 Treads . | . . Legs 341 | 34 307 Wheels . | . . Hover . | . . Flight . | . . Fastest Speed 50 | 50 100 Average Speed 120 | 114 121 Slowest Speed 250 | 120 250 Overloaded Moves . | . . Propulsion Burnouts . | . . Robots Hopped . | . . Potential Cave-ins . | . . Cave-ins Triggered . | . . Exploration Rate (%) 22 | 3 42 Regions Visited 1 Branch Regions . Pre-discovered Areas . | . . Known Exits Taken . | . . Unknown Exits Taken 1 | 1 . Scrap Searched . | . . Spaces Dug . | . . Terrain Destroyed . | . . Melee . | . . Projectile . | . . AOE . | . . Terrain Rammed . | . . Walls Destroyed . | . . Machines Disabled . | . . Actions | -11 -10 --------- Run | Yrd Mat Total 622 | 45 577 Wait 125 | . 125 Move 352 | 36 316 Hop . | . . Pick Up 22 | 7 15 Fast Attach 2 | . 2 Attach 12 | 2 10 Detach . | . . Swap 4 | . 4 Drop 4 | . 4 Fire 79 | . 79 Melee . | . . Ram . | . . Kick 22 | . 22 Crush . | . . Escape Stasis . | . . Rewire . | . . Trap . | . . Miscellaneous . | . . Route ------- -11/Scrapyard -10/Materials (discovered 3 exits: [*Mat] / [*Min] / [*Sub]) History --------- Turn | Location | Event 15 | -11/Scrapyard | Discovered new exit (range 16) 52 | -11/Scrapyard | Entered Materials 316 | -10/Materials | Build established: Mutant 378 | -10/Materials | Discovered new exit (range 7) 507 | -10/Materials | Discovered new exit (range 4) 592 | -10/Materials | Core integrity fell below 50% 663 | -10/Materials | Discovered new exit (range 9) 793 | -10/Materials | Core integrity fell below 20% 825 | -10/Materials | Destroyed by G-34 Mercenary with Small Laser Last Messages --------------- Acquired Aluminum Leg. Dropped Aluminum Leg. Dropped Ion Engine. A-02 Transporter sends out distress signal. Acquired 33 matter. Lgt. Assault Rifle destroyed. Critical hit (Burn: +37). Kicked G-47 Trooper. Kicked G-47 Trooper out of the way. Kicked G-34 Mercenary out of the way. Kicked G-34 Mercenary. Kicked G-34 Mercenary out of the way. Kicked G-34 Mercenary. Kicked G-34 Mercenary out of the way. Kicked G-34 Mercenary. Kicked G-34 Mercenary out of the way. Kicked G-34 Mercenary. Kicked G-34 Mercenary out of the way. Aluminum Leg destroyed. Kicked G-34 Mercenary. Map ----- +----------------------------------------------------+ | | | | | | | | | | | | | | | | | | | | | ??????????########??????????????????############## | | ??????????# #??????????????????# # | | ??????????# #??????????????????# # | | ??????????# """ #??????????????????# || # | | ??????????# """ #??????????????????# | ^# | | ??????????# """ #?#######??????????# | # | | ??????????# ^ #?# T #??????????# # | | ????????######+##### #??????????# ## | | ???????? # ## #????############+####### | | ???????? # < ## """ #????# # [ | | ???????? # ## """ ###### "" | # ###### | | ???????? ##### ## """ # + "Y% # #????# | | ???????? #???# ## *%%# # "" + ###### | | ???????? #???# #####+## # # ## # | | ???????? #???# *[!g%g + """ # # | | ???????? #???# %!==@ #### """ # # | | ???????? #???# %%%% #??# """ # # | | ???????? #???# %% #??########### # | | ???????? #?####+##############?????????# # | | ???????? #?# # ^ #?????????# + | | ???????? #?#"" # """ #?????????# # | | ???????? #?#"T # """"" #?????????# # | | ????????????#"" # """"" #?????????# # | | ????????????# # """"" #?????????# # | | ????????????# """ # """ #?????????# # | | ????????????# """ # ^ % #?????????# # | | ????????????# """ # ^ #########?# ###### | | ????????????# # [%% ## #?# #????? | | ????????????#######+#####+###### #?# #????? | | ?????????????????#! [=%* # ### ##???? | | ?????????????????#%= * # ## ##### | | ??????????????"" +! %+ ## | | ??????????????"" ###+####### # +%% " | | ???????????????????????????# ######### | | ?????????????????????????? #??????# ###+# | | ????????????????????????#"" #??????## ## | | ????????????????????????#!! #???????# ## | | ????????????????????????#"" < #???????# ## *" | | ????????????????????????#!! #???????# ## " | | ????????????????????????#"" #???????# ## " | +----------------------------------------------------+ Best States ------------- Heat Dissipation 25 Energy Generation 10 Energy Capacity 250 Matter Stores 300 Matter Capacity 300 Sight Range 16 Terrain Scan Density 10 Evasion (%) 55 Targeting Accuracy 5 Item Schematics ----------------- None Robot Schematics ------------------ None Fabricated ------------ Nothing Repaired ---------- Nothing Studied --------- None Alien Tech Used ----------------- None Achievements -------------- True Hacker Challenges ------------ None Game ------ Seed PointyFluxSlamshotty Manual? 0 Play Time 00:13:56 Cumulative 18.5 hours Start 2026.04.17 @ 10:09:53 End 2026.04.17 @ 10:22:52 Sessions 1 Manual Loads 0 Difficulty Rogue Special Mode None Game No. 26 Rogue 26 Adventurer 0 Explorer 0 Win Type - Total 0 Types 0/0/0/0/0/0/0/0/0/0 Lore% 5 Gallery% 15 Achievement% 10 Wizard Run 0 Options --------- Layout 1 ASCII 0 Keyboard 0 Movement Mouse Keybinds 0 Fullscreen 2 Font 28/SmallcapsGlow Map View 29x19 Zoom Use 26% Tactical HUD 0 Map Filters NONE Filters NONE Steam 1 RUN: 9ba70293-5b84-493e-867e-e7583381e8ab